[Event "Titled Tuesday Blitz May 16 Late 2023"]
[White "Andreikin, Dmitry"]
[Black "Mahdavi, Reza"]
[WhiteFideId "4158814"]
[BlackFideId "12595926"]
[WhiteElo "2736"]
[BlackElo "2352"]
[Result "1-0"]
[Round "11"]
[TimeControl "180+2"]
[Date "2023.05.16"]
[WhiteClock "0:00:03"]
[BlackClock "0:00:00"]

1. Nf3 {[%clk 0:03:00]}  Nf6 {[%clk 0:02:59]} 2. c4 {[%clk 0:03:01]}  g6 {[%clk 0:02:54]} 3. b4 {[%clk 0:03:00]}  Bg7 {[%clk 0:02:53]} 4. Bb2 {[%clk 0:03:01]}  O-O {[%clk 0:02:53]} 5. g3 {[%clk 0:03:01]}  d6 {[%clk 0:02:48]} 6. Bg2 {[%clk 0:03:00]}  c5 {[%clk 0:02:46]} 7. bxc5 {[%clk 0:02:57]}  dxc5 {[%clk 0:02:47]} 8. O-O {[%clk 0:02:57]}  Nc6 {[%clk 0:02:46]} 9. Ne5 {[%clk 0:02:57]}  Nd4 {[%clk 0:02:39]} 10. Nc3 {[%clk 0:02:48]}  Qc7 {[%clk 0:02:21]} 11. f4 {[%clk 0:02:47]}  Rd8 {[%clk 0:02:11]} 12. Rb1 {[%clk 0:02:42]}  Bf5 {[%clk 0:02:06]} 13. d3 {[%clk 0:02:42]}  Ng4 {[%clk 0:02:05]} 14. Nd5 {[%clk 0:02:28]}  Rxd5 {[%clk 0:01:58]} 15. Bxd5 {[%clk 0:02:29]}  Bxe5 {[%clk 0:01:54]} 16. fxe5 {[%clk 0:02:19]}  Qxe5 {[%clk 0:01:55]} 17. e4 {[%clk 0:01:41]}  Ne3 {[%clk 0:01:53]} 18. Rxf5 {[%clk 0:01:19]}  gxf5 {[%clk 0:01:53]} 19. Qh5 {[%clk 0:01:16]}  Nxd5 {[%clk 0:01:49]} 20. cxd5 {[%clk 0:01:17]}  e6 {[%clk 0:01:30]} 21. Kg2 {[%clk 0:01:12]}  exd5 {[%clk 0:01:23]} 22. Bxd4 {[%clk 0:01:08]}  Qxd4 {[%clk 0:01:21]} 23. Rxb7 {[%clk 0:01:08]}  Rf8 {[%clk 0:01:16]} 24. exf5 {[%clk 0:01:02]}  Qxd3 {[%clk 0:01:11]} 25. Qg5+ {[%clk 0:00:59]}  Kh8 {[%clk 0:01:11]} 26. Qf6+ {[%clk 0:00:56]}  Kg8 {[%clk 0:01:11]} 27. Qg5+ {[%clk 0:00:53]}  Kh8 {[%clk 0:01:11]} 28. Rxa7 {[%clk 0:00:48]}  c4 {[%clk 0:00:35]} 29. Qf6+ {[%clk 0:00:47]}  Kg8 {[%clk 0:00:35]} 30. Qg5+ {[%clk 0:00:47]}  Kh8 {[%clk 0:00:36]} 31. Kh3 {[%clk 0:00:47]}  Qf1+ {[%clk 0:00:27]} 32. Kh4 {[%clk 0:00:46]}  Qf2 {[%clk 0:00:25]} 33. Qf6+ {[%clk 0:00:43]}  Kg8 {[%clk 0:00:25]} 34. Qg5+ {[%clk 0:00:41]}  Kh8 {[%clk 0:00:26]} 35. f6 {[%clk 0:00:21]}  Qxh2+ {[%clk 0:00:18]} 36. Kg4 {[%clk 0:00:21]}  Qe2+ {[%clk 0:00:19]} 37. Kh3 {[%clk 0:00:17]}  Qf1+ {[%clk 0:00:19]} 38. Kh2 {[%clk 0:00:15]}  Qf2+ {[%clk 0:00:14]} 39. Kh3 {[%clk 0:00:15]}  Qf1+ {[%clk 0:00:15]} 40. Kg4 {[%clk 0:00:14]}  Qe2+ {[%clk 0:00:14]} 41. Kh4 {[%clk 0:00:08]}  Qe4+ {[%clk 0:00:11]} 42. Kh3 {[%clk 0:00:06]}  Qh1+ {[%clk 0:00:11]} 43. Kg4 {[%clk 0:00:06]}  Qe4+ {[%clk 0:00:12]} 44. Kh3 {[%clk 0:00:06]}  Qg6 {[%clk 0:00:12]} 45. Qxd5 {[%clk 0:00:05]}  Qxf6 {[%clk 0:00:07]} 46. Qxc4 {[%clk 0:00:05]}  Qf5+ {[%clk 0:00:05]} 47. Kg2 {[%clk 0:00:04]}  Rd8 {[%clk 0:00:05]} 48. Qc3+ {[%clk 0:00:03]}  Kg8 {[%clk 0:00:05]} 49. Ra5 {[%clk 0:00:03]}  Qe4+ {[%clk 0:00:05]} 50. Kh2 {[%clk 0:00:03]}  Qe2+ {[%clk 0:00:05]} 51. Kh3 {[%clk 0:00:04]}  Qf1+ {[%clk 0:00:03]} 52. Kg4 {[%clk 0:00:05]}  Qe2+ {[%clk 0:00:03]} 53. Kh3 {[%clk 0:00:05]}  Qe6+ {[%clk 0:00:02]} 54. g4 {[%clk 0:00:03]}  Qe2 {[%clk 0:00:02]} 55. Rg5+ {[%clk 0:00:03]}  Kf8 {[%clk 0:00:02]} 56. Qc5+ {[%clk 0:00:03]}  Ke8 {[%clk 0:00:00]} 57. Re5+ {[%clk 0:00:03]} 1-0


[Site "https://www.chess.com"]

[Event "Titled Tuesday Blitz May 16 Late 2023"]
[White "Martinez Alcantara, Jose Eduardo"]
[Black "Remizov, Yaroslav"]
[WhiteFideId "3805662"]
[BlackFideId "34134015"]
[WhiteElo "2711"]
[BlackElo "2400"]
[Result "0-1"]
[Round "11"]
[TimeControl "180+2"]
[Date "2023.05.16"]
[WhiteClock "0:00:00"]
[BlackClock "0:00:09"]

1. e4 {[%clk 0:03:00]}  c5 {[%clk 0:02:59]} 2. Nf3 {[%clk 0:03:01]}  e6 {[%clk 0:02:59]} 3. c3 {[%clk 0:03:01]}  Nf6 {[%clk 0:02:56]} 4. Bd3 {[%clk 0:03:01]}  d5 {[%clk 0:02:52]} 5. e5 {[%clk 0:03:01]}  Nfd7 {[%clk 0:02:46]} 6. Bc2 {[%clk 0:03:01]}  d4 {[%clk 0:02:44]} 7. Qe2 {[%clk 0:03:01]}  Nc6 {[%clk 0:02:41]} 8. d3 {[%clk 0:02:59]}  b5 {[%clk 0:02:38]} 9. Bf4 {[%clk 0:02:58]}  Bb7 {[%clk 0:02:37]} 10. Nbd2 {[%clk 0:02:58]}  Nb6 {[%clk 0:02:29]} 11. Ne4 {[%clk 0:02:51]}  dxc3 {[%clk 0:02:17]} 12. bxc3 {[%clk 0:02:51]}  b4 {[%clk 0:02:17]} 13. c4 {[%clk 0:02:40]}  Nd4 {[%clk 0:02:15]} 14. Nxd4 {[%clk 0:02:39]}  Qxd4 {[%clk 0:02:15]} 15. O-O {[%clk 0:02:40]}  Be7 {[%clk 0:02:04]} 16. Be3 {[%clk 0:02:17]}  Qxe5 {[%clk 0:02:01]} 17. f4 {[%clk 0:02:18]}  Qc7 {[%clk 0:01:59]} 18. f5 {[%clk 0:02:18]}  Bxe4 {[%clk 0:01:49]} 19. dxe4 {[%clk 0:02:19]}  e5 {[%clk 0:01:48]} 20. Rf3 {[%clk 0:02:10]}  O-O-O {[%clk 0:01:42]} 21. a3 {[%clk 0:02:10]}  Kb8 {[%clk 0:01:41]} 22. g3 {[%clk 0:02:07]}  Rd7 {[%clk 0:01:37]} 23. Kg2 {[%clk 0:02:07]}  Rhd8 {[%clk 0:01:36]} 24. h4 {[%clk 0:02:02]}  Qc6 {[%clk 0:01:31]} 25. Kh3 {[%clk 0:01:56]}  b3 {[%clk 0:01:19]} 26. Bxb3 {[%clk 0:01:41]}  Qxe4 {[%clk 0:01:18]} 27. Re1 {[%clk 0:01:30]}  h5 {[%clk 0:01:13]} 28. Kh2 {[%clk 0:01:30]}  Qg4 {[%clk 0:00:51]} 29. a4 {[%clk 0:01:22]}  Rd3 {[%clk 0:00:45]} 30. Ba2 {[%clk 0:01:20]}  Ra3 {[%clk 0:00:37]} 31. Bb1 {[%clk 0:00:57]}  Qxc4 {[%clk 0:00:32]} 32. Qb2 {[%clk 0:00:51]}  Rb3 {[%clk 0:00:24]} 33. Qxe5+ {[%clk 0:00:46]}  Bd6 {[%clk 0:00:25]} 34. Qxg7 {[%clk 0:00:43]}  Qxh4+ {[%clk 0:00:22]} 35. Kg2 {[%clk 0:00:39]}  Qg4 {[%clk 0:00:21]} 36. Qf6 {[%clk 0:00:38]}  Bc7 {[%clk 0:00:17]} 37. Qc6 {[%clk 0:00:21]}  Nd5 {[%clk 0:00:11]} 38. Qxc5 {[%clk 0:00:09]}  Bb6 {[%clk 0:00:11]} 39. Qc6 {[%clk 0:00:00]}  Nxe3+ {[%clk 0:00:09]} 0-1


[Site "https://www.chess.com"]

[Event "Titled Tuesday Blitz May 16 Late 2023"]
[White "Sarana, Alexey"]
[Black "Caruana, Fabiano"]
[WhiteFideId "24133795"]
[BlackFideId "2020009"]
[WhiteElo "2714"]
[BlackElo "2837"]
[Result "0-1"]
[Round "11"]
[TimeControl "180+2"]
[Date "2023.05.16"]
[WhiteClock "0:00:00"]
[BlackClock "0:00:07"]

1. d4 {[%clk 0:03:00]}  Nf6 {[%clk 0:03:00]} 2. c4 {[%clk 0:03:00]}  e6 {[%clk 0:02:59]} 3. Nc3 {[%clk 0:03:01]}  Bb4 {[%clk 0:02:58]} 4. Qc2 {[%clk 0:02:59]}  O-O {[%clk 0:02:54]} 5. a3 {[%clk 0:02:59]}  Bxc3+ {[%clk 0:02:53]} 6. Qxc3 {[%clk 0:03:00]}  d6 {[%clk 0:02:54]} 7. Bg5 {[%clk 0:02:55]}  h6 {[%clk 0:02:53]} 8. Bh4 {[%clk 0:02:55]}  Re8 {[%clk 0:02:53]} 9. f3 {[%clk 0:02:52]}  e5 {[%clk 0:02:51]} 10. dxe5 {[%clk 0:02:51]}  dxe5 {[%clk 0:02:51]} 11. e3 {[%clk 0:02:37]}  a5 {[%clk 0:02:48]} 12. Ne2 {[%clk 0:02:37]}  a4 {[%clk 0:02:45]} 13. g4 {[%clk 0:02:02]}  Na6 {[%clk 0:02:37]} 14. Rd1 {[%clk 0:01:50]}  Qe7 {[%clk 0:02:35]} 15. Rg1 {[%clk 0:01:44]}  Nc5 {[%clk 0:02:29]} 16. h3 {[%clk 0:01:26]}  Ra6 {[%clk 0:02:20]} 17. Bf2 {[%clk 0:01:05]}  e4 {[%clk 0:02:09]} 18. Bg2 {[%clk 0:00:27]}  exf3 {[%clk 0:02:04]} 19. Bxf3 {[%clk 0:00:28]}  Nfe4 {[%clk 0:02:04]} 20. Qc1 {[%clk 0:00:16]}  Nb3 {[%clk 0:01:49]} 21. Qc2 {[%clk 0:00:16]}  Nxf2 {[%clk 0:01:49]} 22. Kxf2 {[%clk 0:00:17]}  Qxe3+ {[%clk 0:01:48]} 23. Kg2 {[%clk 0:00:17]}  h5 {[%clk 0:01:30]} 24. Ng3 {[%clk 0:00:14]}  Rf6 {[%clk 0:01:04]} 25. Rgf1 {[%clk 0:00:14]}  h4 {[%clk 0:00:53]} 26. Nh5 {[%clk 0:00:14]}  Rfe6 {[%clk 0:00:52]} 27. Bd5 {[%clk 0:00:09]}  Qe2+ {[%clk 0:00:47]} 28. Qxe2 {[%clk 0:00:07]}  Rxe2+ {[%clk 0:00:48]} 29. Kg1 {[%clk 0:00:08]}  R2e7 {[%clk 0:00:42]} 30. Rf4 {[%clk 0:00:04]}  c6 {[%clk 0:00:42]} 31. Bg2 {[%clk 0:00:04]}  Re1+ {[%clk 0:00:38]} 32. Rxe1 {[%clk 0:00:04]}  Rxe1+ {[%clk 0:00:39]} 33. Kh2 {[%clk 0:00:03]}  Be6 {[%clk 0:00:35]} 34. g5 {[%clk 0:00:03]}  Re2 {[%clk 0:00:32]} 35. Rxh4 {[%clk 0:00:03]}  Nd2 {[%clk 0:00:27]} 36. Kg1 {[%clk 0:00:03]}  Re1+ {[%clk 0:00:19]} 37. Kf2 {[%clk 0:00:03]}  Rb1 {[%clk 0:00:20]} 38. Rd4 {[%clk 0:00:03]}  Rxb2 {[%clk 0:00:18]} 39. Kg3 {[%clk 0:00:03]}  Kh7 {[%clk 0:00:18]} 40. Nf4 {[%clk 0:00:03]}  Bf5 {[%clk 0:00:17]} 41. h4 {[%clk 0:00:02]}  b5 {[%clk 0:00:15]} 42. cxb5 {[%clk 0:00:02]}  cxb5 {[%clk 0:00:16]} 43. Bd5 {[%clk 0:00:03]}  b4 {[%clk 0:00:10]} 44. axb4 {[%clk 0:00:02]}  a3 {[%clk 0:00:10]} 45. Be6 {[%clk 0:00:03]}  fxe6 {[%clk 0:00:09]} 46. h5 {[%clk 0:00:03]}  Kg8 {[%clk 0:00:08]} 47. Rd8+ {[%clk 0:00:02]}  Kf7 {[%clk 0:00:08]} 48. Rd7+ {[%clk 0:00:02]}  Kf8 {[%clk 0:00:07]} 49. g6 {[%clk 0:00:02]}  e5 {[%clk 0:00:07]} 50. Nd5 {[%clk 0:00:01]}  Bxd7 {[%clk 0:00:07]} 51. h6 {[%clk 0:00:00]}  gxh6 {[%clk 0:00:07]} 0-1


[Site "https://www.chess.com"]

[Event "Titled Tuesday Blitz May 16 Late 2023"]
[White "Pap, Gyula"]
[Black "Rastbod, Ali"]
[WhiteFideId "725323"]
[BlackFideId "12567477"]
[WhiteElo "2519"]
[BlackElo "2274"]
[Result "1-0"]
[Round "11"]
[TimeControl "180+2"]
[Date "2023.05.16"]
[WhiteClock "0:00:26"]
[BlackClock "0:00:00"]

1. Nf3 {[%clk 0:03:00]}  d5 {[%clk 0:02:56]} 2. g3 {[%clk 0:03:01]}  Nd7 {[%clk 0:02:57]} 3. Bg2 {[%clk 0:02:53]}  e5 {[%clk 0:02:56]} 4. O-O {[%clk 0:02:54]}  Ngf6 {[%clk 0:02:57]} 5. d4 {[%clk 0:02:54]}  e4 {[%clk 0:02:55]} 6. Ne5 {[%clk 0:02:54]}  Bd6 {[%clk 0:02:56]} 7. Nxd7 {[%clk 0:02:35]}  Bxd7 {[%clk 0:02:57]} 8. c4 {[%clk 0:02:36]}  c6 {[%clk 0:02:57]} 9. cxd5 {[%clk 0:02:36]}  cxd5 {[%clk 0:02:57]} 10. Nc3 {[%clk 0:02:33]}  h6 {[%clk 0:02:56]} 11. Qb3 {[%clk 0:02:32]}  Bc6 {[%clk 0:02:56]} 12. f3 {[%clk 0:02:27]}  exf3 {[%clk 0:02:57]} 13. Bxf3 {[%clk 0:02:28]}  Bc7 {[%clk 0:02:45]} 14. Nb5 {[%clk 0:01:58]}  Bb6 {[%clk 0:02:37]} 15. Bf4 {[%clk 0:01:57]}  O-O {[%clk 0:02:36]} 16. e3 {[%clk 0:01:57]}  Re8 {[%clk 0:02:23]} 17. Nd6 {[%clk 0:01:49]}  Re6 {[%clk 0:02:14]} 18. Nf5 {[%clk 0:01:50]}  Ne4 {[%clk 0:01:49]} 19. Qc2 {[%clk 0:01:32]}  Rc8 {[%clk 0:01:36]} 20. Qg2 {[%clk 0:01:31]}  Bb5 {[%clk 0:00:49]} 21. Rfc1 {[%clk 0:01:30]}  Rec6 {[%clk 0:00:47]} 22. Rxc6 {[%clk 0:01:30]}  Bxc6 {[%clk 0:00:44]} 23. g4 {[%clk 0:01:25]}  Ng5 {[%clk 0:00:29]} 24. Be2 {[%clk 0:01:20]}  Ne6 {[%clk 0:00:28]} 25. Bg3 {[%clk 0:01:16]}  Bc7 {[%clk 0:00:28]} 26. h4 {[%clk 0:01:16]}  Bxg3 {[%clk 0:00:28]} 27. Qxg3 {[%clk 0:01:17]}  Qc7 {[%clk 0:00:28]} 28. Qxc7 {[%clk 0:01:10]}  Rxc7 {[%clk 0:00:29]} 29. Rc1 {[%clk 0:01:10]}  Kf8 {[%clk 0:00:30]} 30. Kf2 {[%clk 0:01:07]}  Bd7 {[%clk 0:00:25]} 31. Rc3 {[%clk 0:01:00]}  Rxc3 {[%clk 0:00:16]} 32. bxc3 {[%clk 0:01:01]}  Nc7 {[%clk 0:00:14]} 33. Ng3 {[%clk 0:00:56]}  Bb5 {[%clk 0:00:09]} 34. Bd1 {[%clk 0:00:49]}  Bc4 {[%clk 0:00:09]} 35. Bb3 {[%clk 0:00:43]}  Nb5 {[%clk 0:00:09]} 36. Bxc4 {[%clk 0:00:39]}  dxc4 {[%clk 0:00:09]} 37. Ne2 {[%clk 0:00:40]}  Ke7 {[%clk 0:00:05]} 38. e4 {[%clk 0:00:40]}  Kd6 {[%clk 0:00:04]} 39. Ke3 {[%clk 0:00:39]}  Na3 {[%clk 0:00:04]} 40. e5+ {[%clk 0:00:35]}  Kc6 {[%clk 0:00:04]} 41. Ke4 {[%clk 0:00:36]}  b5 {[%clk 0:00:03]} 42. d5+ {[%clk 0:00:33]}  Kc5 {[%clk 0:00:03]} 43. Nd4 {[%clk 0:00:30]}  Nb1 {[%clk 0:00:03]} 44. Ne2 {[%clk 0:00:28]}  a5 {[%clk 0:00:04]} 45. d6 {[%clk 0:00:27]}  b4 {[%clk 0:00:00]} 46. d7 {[%clk 0:00:26]} 1-0


[Site "https://www.chess.com"]

[Event "Titled Tuesday Blitz May 16 Late 2023"]
[White "Mirimanian, Hayk"]
[Black "Kramnik, Vladimir"]
[WhiteFideId "4700180"]
[BlackFideId "4101588"]
[WhiteElo "2280"]
[BlackElo "2703"]
[Result "0-1"]
[Round "11"]
[TimeControl "180+2"]
[Date "2023.05.16"]
[WhiteClock "0:00:05"]
[BlackClock "0:00:05"]

1. e4 {[%clk 0:03:00]}  c5 {[%clk 0:02:59]} 2. Nf3 {[%clk 0:03:00]}  d6 {[%clk 0:02:59]} 3. Bb5+ {[%clk 0:03:01]}  Nd7 {[%clk 0:02:58]} 4. O-O {[%clk 0:03:01]}  Nf6 {[%clk 0:02:57]} 5. Re1 {[%clk 0:03:01]}  a6 {[%clk 0:02:56]} 6. Bxd7+ {[%clk 0:02:58]}  Bxd7 {[%clk 0:02:51]} 7. c3 {[%clk 0:02:58]}  e6 {[%clk 0:02:42]} 8. d4 {[%clk 0:02:58]}  Be7 {[%clk 0:02:37]} 9. Bg5 {[%clk 0:02:57]}  O-O {[%clk 0:02:33]} 10. dxc5 {[%clk 0:02:29]}  dxc5 {[%clk 0:02:32]} 11. e5 {[%clk 0:02:07]}  Nd5 {[%clk 0:02:28]} 12. Bxe7 {[%clk 0:02:08]}  Nxe7 {[%clk 0:02:26]} 13. Nbd2 {[%clk 0:02:06]}  Bc6 {[%clk 0:02:25]} 14. Qe2 {[%clk 0:02:00]}  Qc7 {[%clk 0:02:01]} 15. Ne4 {[%clk 0:01:58]}  Bxe4 {[%clk 0:01:58]} 16. Qxe4 {[%clk 0:01:59]}  h6 {[%clk 0:01:50]} 17. Rad1 {[%clk 0:01:27]}  Rad8 {[%clk 0:01:49]} 18. h4 {[%clk 0:01:25]}  b5 {[%clk 0:01:48]} 19. h5 {[%clk 0:01:23]}  Rd7 {[%clk 0:01:42]} 20. a4 {[%clk 0:01:01]}  Rfd8 {[%clk 0:01:39]} 21. Rxd7 {[%clk 0:01:01]}  Qxd7 {[%clk 0:01:39]} 22. axb5 {[%clk 0:01:02]}  Qxb5 {[%clk 0:01:28]} 23. Qc2 {[%clk 0:00:56]}  Nc6 {[%clk 0:01:27]} 24. Ra1 {[%clk 0:00:53]}  a5 {[%clk 0:01:20]} 25. Qa4 {[%clk 0:00:39]}  Qxb2 {[%clk 0:01:17]} 26. Ra2 {[%clk 0:00:32]}  Qb1+ {[%clk 0:00:54]} 27. Kh2 {[%clk 0:00:33]}  Ne7 {[%clk 0:00:34]} 28. Qxa5 {[%clk 0:00:27]}  Rd1 {[%clk 0:00:33]} 29. Qa8+ {[%clk 0:00:16]}  Kh7 {[%clk 0:00:32]} 30. Rd2 {[%clk 0:00:16]}  Rh1+ {[%clk 0:00:27]} 31. Kg3 {[%clk 0:00:16]}  Nf5+ {[%clk 0:00:14]} 32. Kf4 {[%clk 0:00:15]}  Qc1 {[%clk 0:00:11]} 33. Qd8 {[%clk 0:00:12]}  Rd1 {[%clk 0:00:09]} 34. g4 {[%clk 0:00:12]}  Nd4 {[%clk 0:00:07]} 35. cxd4 {[%clk 0:00:10]}  Rxd2 {[%clk 0:00:07]} 36. Nxd2 {[%clk 0:00:11]}  Qxd2+ {[%clk 0:00:07]} 37. Ke4 {[%clk 0:00:11]}  Qe2+ {[%clk 0:00:07]} 38. Kf4 {[%clk 0:00:12]}  c4 {[%clk 0:00:06]} 39. g5 {[%clk 0:00:07]}  Qd2+ {[%clk 0:00:05]} 40. Ke4 {[%clk 0:00:06]}  hxg5 {[%clk 0:00:05]} 41. Qe8 {[%clk 0:00:05]}  Qd3# {[%clk 0:00:05]} 0-1


[Site "https://www.chess.com"]

[Event "Titled Tuesday Blitz May 16 Late 2023"]
[White "Grinev, Valeriy"]
[Black "Lazavik, Denis"]
[WhiteFideId "14117517"]
[BlackFideId "13515110"]
[WhiteElo "2366"]
[BlackElo "2560"]
[Result "0-1"]
[Round "11"]
[TimeControl "180+2"]
[Date "2023.05.16"]
[WhiteClock "0:01:07"]
[BlackClock "0:01:26"]

1. d4 {[%clk 0:03:00]}  Nf6 {[%clk 0:02:59]} 2. c4 {[%clk 0:03:00]}  e6 {[%clk 0:02:59]} 3. Nc3 {[%clk 0:03:00]}  Bb4 {[%clk 0:03:00]} 4. e3 {[%clk 0:03:01]}  O-O {[%clk 0:02:59]} 5. Bd2 {[%clk 0:03:01]}  b6 {[%clk 0:02:58]} 6. Nf3 {[%clk 0:03:01]}  d5 {[%clk 0:02:59]} 7. cxd5 {[%clk 0:03:00]}  exd5 {[%clk 0:02:59]} 8. Rc1 {[%clk 0:03:00]}  Re8 {[%clk 0:03:00]} 9. Bd3 {[%clk 0:02:59]}  Ba6 {[%clk 0:03:00]} 10. Bxa6 {[%clk 0:02:58]}  Nxa6 {[%clk 0:03:00]} 11. O-O {[%clk 0:02:58]}  Qc8 {[%clk 0:03:00]} 12. Nb5 {[%clk 0:02:55]}  Bf8 {[%clk 0:02:54]} 13. Qa4 {[%clk 0:02:50]}  Qb7 {[%clk 0:02:53]} 14. Ne5 {[%clk 0:02:48]}  c5 {[%clk 0:02:49]} 15. b3 {[%clk 0:02:27]}  Ne4 {[%clk 0:02:48]} 16. Rfd1 {[%clk 0:02:27]}  f6 {[%clk 0:02:48]} 17. Nd3 {[%clk 0:02:24]}  cxd4 {[%clk 0:02:31]} 18. Nxd4 {[%clk 0:02:19]}  Nac5 {[%clk 0:02:30]} 19. Nxc5 {[%clk 0:02:17]}  bxc5 {[%clk 0:02:30]} 20. Nf3 {[%clk 0:02:17]}  Rac8 {[%clk 0:02:19]} 21. Be1 {[%clk 0:02:10]}  Red8 {[%clk 0:02:07]} 22. Nd2 {[%clk 0:01:52]}  Ng5 {[%clk 0:02:05]} 23. Nb1 {[%clk 0:01:52]}  Ne6 {[%clk 0:02:03]} 24. Ba5 {[%clk 0:01:48]}  Rd6 {[%clk 0:02:03]} 25. Nc3 {[%clk 0:01:48]}  d4 {[%clk 0:01:55]} 26. Nb5 {[%clk 0:01:47]}  Rd7 {[%clk 0:01:43]} 27. Qc4 {[%clk 0:01:45]}  Qd5 {[%clk 0:01:38]} 28. Qxd5 {[%clk 0:01:39]}  Rxd5 {[%clk 0:01:38]} 29. exd4 {[%clk 0:01:40]}  a6 {[%clk 0:01:39]} 30. Na7 {[%clk 0:01:26]}  Ra8 {[%clk 0:01:35]} 31. Nc6 {[%clk 0:01:27]}  cxd4 {[%clk 0:01:27]} 32. Nb4 {[%clk 0:01:07]}  Rxa5 {[%clk 0:01:26]} 0-1


[Site "https://www.chess.com"]

[Event "Titled Tuesday Blitz May 16 Late 2023"]
[White "koncheto"]
[Black "Deac, Bogdan-Daniel"]
[BlackFideId "1226380"]
[WhiteElo "2606"]
[BlackElo "2649"]
[Result "0-1"]
[Round "11"]
[TimeControl "180+2"]
[Date "2023.05.16"]
[WhiteClock "0:00:00"]
[BlackClock "0:00:58"]

1. e4 {[%clk 0:03:00]}  Nf6 {[%clk 0:02:57]} 2. e5 {[%clk 0:03:00]}  Nd5 {[%clk 0:02:57]} 3. d4 {[%clk 0:02:59]}  d6 {[%clk 0:02:58]} 4. c4 {[%clk 0:02:59]}  Nb6 {[%clk 0:02:58]} 5. exd6 {[%clk 0:03:00]}  cxd6 {[%clk 0:02:58]} 6. Nf3 {[%clk 0:03:00]}  g6 {[%clk 0:02:57]} 7. Nc3 {[%clk 0:02:54]}  Bg7 {[%clk 0:02:56]} 8. Be3 {[%clk 0:02:54]}  O-O {[%clk 0:02:54]} 9. Be2 {[%clk 0:02:53]}  Bg4 {[%clk 0:02:53]} 10. h3 {[%clk 0:02:53]}  Bxf3 {[%clk 0:02:37]} 11. Bxf3 {[%clk 0:02:54]}  Nc6 {[%clk 0:02:37]} 12. b3 {[%clk 0:02:51]}  e6 {[%clk 0:02:37]} 13. O-O {[%clk 0:02:48]}  d5 {[%clk 0:02:34]} 14. c5 {[%clk 0:02:28]}  Nd7 {[%clk 0:02:34]} 15. b4 {[%clk 0:02:28]}  Nxb4 {[%clk 0:02:30]} 16. Rb1 {[%clk 0:02:08]}  Nc6 {[%clk 0:02:30]} 17. Rxb7 {[%clk 0:02:07]}  Nxc5 {[%clk 0:02:30]} 18. dxc5 {[%clk 0:01:47]}  Bxc3 {[%clk 0:02:30]} 19. Qa4 {[%clk 0:01:35]}  Rc8 {[%clk 0:02:25]} 20. Bh6 {[%clk 0:01:23]}  Bg7 {[%clk 0:02:23]} 21. Bxg7 {[%clk 0:01:14]}  Kxg7 {[%clk 0:02:23]} 22. Rfb1 {[%clk 0:01:14]}  Qf6 {[%clk 0:02:22]} 23. Rd7 {[%clk 0:01:10]}  Ne5 {[%clk 0:02:20]} 24. c6 {[%clk 0:01:02]}  Rxc6 {[%clk 0:02:17]} 25. Be2 {[%clk 0:00:53]}  Rfc8 {[%clk 0:01:56]} 26. Rxa7 {[%clk 0:00:44]}  Rc1+ {[%clk 0:01:56]} 27. Rxc1 {[%clk 0:00:44]}  Rxc1+ {[%clk 0:01:57]} 28. Bf1 {[%clk 0:00:29]}  Nd3 {[%clk 0:01:57]} 29. f3 {[%clk 0:00:17]}  Qa1 {[%clk 0:01:43]} 30. Kh2 {[%clk 0:00:17]}  Rxf1 {[%clk 0:01:42]} 31. Qe8 {[%clk 0:00:10]}  Qe5+ {[%clk 0:01:38]} 32. g3 {[%clk 0:00:10]}  Rf2+ {[%clk 0:01:36]} 33. Kg1 {[%clk 0:00:09]}  Rxf3 {[%clk 0:01:35]} 34. Ra8 {[%clk 0:00:06]}  Qxg3+ {[%clk 0:01:32]} 35. Kh1 {[%clk 0:00:06]}  Qxh3+ {[%clk 0:01:32]} 36. Kg1 {[%clk 0:00:06]}  Qg3+ {[%clk 0:01:32]} 37. Kh1 {[%clk 0:00:06]}  Kh6 {[%clk 0:01:30]} 38. Qf8+ {[%clk 0:00:06]}  Kg5 {[%clk 0:01:26]} 39. Qe7+ {[%clk 0:00:06]}  Kh5 {[%clk 0:01:23]} 40. Rh8 {[%clk 0:00:04]}  Kg4 {[%clk 0:01:11]} 41. Rxh7 {[%clk 0:00:02]}  Qe1+ {[%clk 0:01:05]} 42. Kg2 {[%clk 0:00:00]}  Nf4+ {[%clk 0:00:58]} 0-1


[Site "https://www.chess.com"]

[Event "Titled Tuesday Blitz May 16 Late 2023"]
[White "Vlassov, Nikolai"]
[Black "Klukin, Kirill"]
[WhiteFideId "4103360"]
[BlackFideId "24199273"]
[WhiteElo "2324"]
[BlackElo "2344"]
[Result "1-0"]
[Round "11"]
[TimeControl "180+2"]
[Date "2023.05.16"]
[WhiteClock "0:00:21"]
[BlackClock "0:00:42"]

1. e4 {[%clk 0:02:21]}  c5 {[%clk 0:02:59]} 2. c3 {[%clk 0:02:21]}  g6 {[%clk 0:02:59]} 3. d4 {[%clk 0:02:21]}  cxd4 {[%clk 0:03:00]} 4. cxd4 {[%clk 0:02:21]}  d5 {[%clk 0:03:00]} 5. e5 {[%clk 0:02:22]}  a6 {[%clk 0:02:56]} 6. Nc3 {[%clk 0:02:21]}  Bg7 {[%clk 0:02:57]} 7. Bf4 {[%clk 0:02:21]}  Nc6 {[%clk 0:02:58]} 8. Qd2 {[%clk 0:02:20]}  f6 {[%clk 0:02:58]} 9. Nf3 {[%clk 0:02:20]}  fxe5 {[%clk 0:02:57]} 10. Nxe5 {[%clk 0:02:15]}  Nxe5 {[%clk 0:02:57]} 11. dxe5 {[%clk 0:02:09]}  e6 {[%clk 0:02:57]} 12. h4 {[%clk 0:02:02]}  Ne7 {[%clk 0:02:46]} 13. h5 {[%clk 0:02:02]}  O-O {[%clk 0:02:33]} 14. Bd3 {[%clk 0:01:59]}  Bd7 {[%clk 0:02:24]} 15. hxg6 {[%clk 0:01:56]}  Nxg6 {[%clk 0:02:20]} 16. Bxg6 {[%clk 0:01:46]}  hxg6 {[%clk 0:02:20]} 17. O-O-O {[%clk 0:01:43]}  Rc8 {[%clk 0:02:12]} 18. Kb1 {[%clk 0:01:42]}  Qe7 {[%clk 0:02:04]} 19. Rh3 {[%clk 0:01:22]}  Rf5 {[%clk 0:01:45]} 20. g4 {[%clk 0:01:17]}  Rxf4 {[%clk 0:01:05]} 21. Qxf4 {[%clk 0:01:17]}  Rc4 {[%clk 0:01:06]} 22. Qg3 {[%clk 0:01:00]}  Qg5 {[%clk 0:01:04]} 23. Qe3 {[%clk 0:00:48]}  Qxe3 {[%clk 0:01:00]} 24. Rxe3 {[%clk 0:00:48]}  Bxe5 {[%clk 0:01:01]} 25. Rxe5 {[%clk 0:00:47]}  Rxg4 {[%clk 0:01:01]} 26. Ne2 {[%clk 0:00:40]}  Kf7 {[%clk 0:00:53]} 27. Rd4 {[%clk 0:00:34]}  Rg2 {[%clk 0:00:51]} 28. Rf4+ {[%clk 0:00:34]}  Ke7 {[%clk 0:00:51]} 29. Nc1 {[%clk 0:00:29]}  g5 {[%clk 0:00:49]} 30. Rf3 {[%clk 0:00:27]}  d4 {[%clk 0:00:44]} 31. Nd3 {[%clk 0:00:23]}  Bc6 {[%clk 0:00:42]} 32. Rg3 {[%clk 0:00:22]}  Rxf2 {[%clk 0:00:42]} 33. Nxf2 {[%clk 0:00:21]} 1-0


[Site "https://www.chess.com"]